{"text_format":"3","workbook":"xlsx","n_sheets":1,"sheets":["PRICING SCHEDULE"],"not_rendered":{"images":1,"defined_names":2},"read":"whole","date_system":"1900"}

{"sheet":"PRICING SCHEDULE","index":0,"n_rows":32,"n_cols":15,"rows_kept":32,"merged":[[11,3,11,5],[11,6,11,8],[11,9,11,11],[28,1,31,1],[28,3,28,4],[30,3,30,4],[31,3,31,4]]}
[null,"SUPPLY CHAIN MANAGEMENT"]
[null,"Pricing schedule"]
["RFB No","RFB 2741/2023"]
["RFB Title","SUPPLY OF MAINFRAME TECHNICAL SUPPORT, DATA REPLICATION AND FAILOVER SERVICES TO THE GOVERNMENT PENSIONS ADMINISTRATION AGENCY FOR A PERIOD OF THIRTY-SIX (36) MONTHS"]
["Bidder Name "]
[]
["1. INSTRUCTION FOR COMPLETING THE PRICING SCHEDULE"]
["(a)  Bidder must complete/enter YELLOW cells only"]
["(b)  Unit and Line prices must be VAT EXCLUSIVE and in South African Rand (ZAR) currency."]
["(c) The price must include all cost to deliver the goods or render the service, including all applicable taxes, duty fees, logistics/delivery, storage, labour, overtime and subsistance and travel"]
[]
[{"$nulls":3},"YEAR 1",null,null,"YEAR 2",null,null,"YEAR 3",null,null,"TOTAL"]
["Item No","Goods/Service description","Unit of measure","Qty ","Unit Price \n(Excl VAT)","Line Price Y1","Qty","Unit Price \n(Excl VAT)","Line Price Y2","Qty","Unit Price \n(Excl VAT)","Line Price Y3","Line Price Term \n(Excl VAT)","BRAND / MODEL","Price clarification comment"]
[1,"Mainframe Support Services",{"$nulls":3},{"$f":"SUBTOTAL(9,F15:F15)","v":0},null,null,{"$f":"SUBTOTAL(9,I15:I15)","v":0},null,null,{"$f":"SUBTOTAL(9,L15:L15)","v":0},{"$f":"SUBTOTAL(9,M15:M15)","v":0}]
["1.1","1.1  Mainframe Support Services (Payable monthly in arrears)","Monthly",12,null,{"$f":"D15*E15","v":0},12,null,{"$f":"G15*H15","v":0},12,null,{"$f":"J15*K15","v":0},{"$f":"SUM(F15,I15,L15,)","v":0}]
[2,"Data replication",{"$nulls":3},{"$f":"SUBTOTAL(9, F17:F17)","v":0},null,null,{"$f":"SUBTOTAL(9, I17:I17)","v":0},null,null,{"$f":"SUBTOTAL(9, L17:L17)","v":0},{"$f":"SUBTOTAL(9, M17:M17)","v":0}]
["2.1","Item 2.1.  Production data replication (Payable monthly in arrears)","Monthly",12,null,{"$f":"D17*E17","v":0},12,null,{"$f":"G17*H17","v":0},12,null,{"$f":"J17*K17","v":0},{"$f":"SUM(F17,I17,L17,)","v":0}]
[3,"Failover services",{"$nulls":3},{"$f":"SUBTOTAL(9, F19:F19)","v":0},null,null,{"$f":"SUBTOTAL(9, I19:I19)","v":0},null,null,{"$f":"SUBTOTAL(9, L19:L19)","v":0},{"$f":"SUBTOTAL(9, M19:M19)","v":0}]
["3.1","Item 3.1.  Failover services  (Payable monthly in arrears)","Monthly",12,null,0,12,null,0,12,null,0,{"$f":"SUM(F19,I19,L19,)","v":0}]
[4,"Software license utilisation (SLM)",{"$nulls":3},{"$f":"SUBTOTAL(9, F21:F21)","v":0},null,null,{"$f":"SUBTOTAL(9, I21:I21)","v":0},null,null,{"$f":"SUBTOTAL(9, L21:L21)","v":0},{"$f":"SUBTOTAL(9, M21:M21)","v":0}]
["4.1","Item 4.1.  Software license utilisation cost (Payable monthly in arrears)","Monthly",12,null,0,12,null,0,12,null,0,{"$f":"SUM(F21,I21,L21,)","v":0}]
[5,"Hardware Maintenance and support",{"$nulls":3},{"$f":"SUBTOTAL(9, F23:F23)","v":0},null,null,{"$f":"SUBTOTAL(9, I23:I23)","v":0},null,null,{"$f":"SUBTOTAL(9, L23:L23)","v":0},{"$f":"SUBTOTAL(9, M23:M23)","v":0}]
[5.1,"Item 5.1.  Mainframe Hardware maintenance and support (Payable annually in advance)","Each",1,null,0,1,null,0,1,null,0,{"$f":"SUM(F23,I23,L23,)","v":0}]
[null,"TOTAL BID PRICE  (EXCL VAT)",{"$nulls":3},{"$f":"SUBTOTAL(9,F14:F23)","v":0},null,null,{"$f":"SUBTOTAL(9,I14:I23)","v":0},null,null,{"$f":"SUBTOTAL(9,L14:L23)","v":0},{"$f":"SUBTOTAL(9,M14:M23)","v":0}]
[null,"VAT (@15%)",{"$nulls":3},{"$f":"F24*0.15","v":0},null,null,{"$f":"I24*0.15","v":0},null,null,{"$f":"L24*0.15","v":0},{"$f":"M24*0.15","v":0}]
[null,"TOTAL  BID PRICE (INCL VAT)",{"$nulls":3},{"$f":"F24+F25","v":0},null,null,{"$f":"I24+I25","v":0},null,null,{"$f":"L24+L25","v":0},{"$f":"M24+M25","v":0}]
[]
[]
[null,"I, the bidder, confirm that the price(s) and rate(s) quoted cover all the goods and/or works specified in the bidding documents; that the price(s) or rate(s) cover all my obligations and I accept that any mistakes regarding price(s), rate(s) or calculations will be at my own risk.\n[Note: First convert to PDF, then add signature]"]
[null,null,"Name","Capacity"]
[]
[null,null,"Signature (above)","Date"]